bitfinex-derivatives/quotes_SOLF0:USTF0_20241216
["timestamp","ask_amount","ask_price","bid_price","bid_amount"]
[1734309993925,3.48,227.15,227.11,2.2026]
[1734309998027,238.30027238,227.18,227.07,5.31108039]
[1734309998631,238.30027238,227.18,227.12,2.2025]
[1734309999129,2.2022,227.16,227.1,2.2027]
[1734309999934,2.2024,227.14,227.08,2.2028]
[1734310000635,236.83217238,227.15,227.07,5.31108039]
[1734310000830,6.91225746,227.14,227.07,5.31108039]
[1734310001031,236.83217238,227.15,227.13,2.2024]
[1734310001226,236.83217238,227.15,227.07,5.31108039]
[1734310001227,473.66434476,227.19,227.08,1.4034]
[1734310001434,9.15086092,227.17,227.07,5.31108039]
[1734310001634,6.91084322,227.16,227.07,5.31108039]
[1734310002130,16.88475889,227.17,227.07,5.31108039]
[1734310002336,6.91084322,227.16,227.07,5.31108039]
[1734310002533,243.7430156,227.16,227.07,5.31108039]
[1734310002736,236.83217238,227.16,227.07,5.31108039]
[1734310003231,236.83217238,227.16,227.14,2.2023]
[1734310003433,236.83217238,227.16,227.08,9.15086092]
[1734310004331,236.83217238,227.19,227.17,2.202]
[1734310004936,236.83217238,227.22,227.17,2.202]
[1734310004937,236.83217238,227.21,227.17,2.202]
[1734310005239,6.91028165,227.2,227.17,2.202]
[1734310005631,6.91028165,227.2,227.11,9.15086092]
[1734310005835,236.83217238,227.21,227.14,9.15086092]
[1734310006035,236.83217238,227.21,227.17,9.15086092]
[1734310006441,240.29217238,227.21,227.07,6.74598039]
[1734310006737,9.15086092,227.2,227.07,14.46194131]
[1734310006937,2.2019,227.19,227.11,2.2025]
[1734310007235,2.962,227.2,227.07,14.46194131]
[1734310007639,0.30414,227.23,227.16,9.15086092]
[1734310008643,0.30414,227.23,227.17,2.2019]
[1734310011044,0.30414,227.23,227.13,9.15086092]
[1734310011346,0.30414,227.23,227.18,2.2019]
[1734310012343,2.2017,227.21,227.14,2.2023]
[1734310012543,0.30414,227.23,227.1,9.15086092]
[1734310013345,0.30414,227.23,227.13,9.15086092]
[1734310014142,0.30414,227.23,227.16,9.15086092]
[1734310014343,4.384,227.31,227.21,2.2016]
[1734310014548,9.15086092,227.29,227.11,3.46]
[1734310014745,2.2012,227.26,227.2,2.2017]
[1734310015348,9.15086092,227.29,227.2,2.2017]
[1734310016446,2.2011,227.27,227.2,2.2017]
[1734310016746,2.2011,227.27,227.21,2.2016]
[1734310016951,9.15086092,227.29,227.15,9.15086092]
[1734310017245,2.2009,227.29,227.15,9.15086092]
[1734310017448,3.46,227.3,227.21,2.2016]
[1734310017652,2.201,227.28,227.15,9.15086092]
[1734310018252,5.6608,227.3,227.24,2.2014]
[1734310018453,5.6608,227.3,227.22,9.15086092]
[1734310018454,3.46,227.3,227.22,9.15086092]
[1734310018653,4.384,227.31,227.22,9.15086092]
[1734310019049,4.384,227.31,227.19,9.15086092]
[1734310019349,2.8454,227.31,227.22,9.15086092]
[1734310019555,2.8454,227.31,227.19,14.45437448]
[1734310019856,2.8454,227.31,227.24,2.2014]
[1734310020049,2.8454,227.31,227.19,14.45437448]
[1734310020246,2.8454,227.31,227.21,2.2016]
[1734310020449,9.15086092,227.3,227.21,2.2016]
[1734310020654,9.15086092,227.3,227.19,5.30351356]
[1734310021150,9.15086092,227.3,227.23,2.2015]
[1734310021151,2.2009,227.29,227.23,2.2015]
[1734310021353,9.15086092,227.3,227.19,5.30351356]
[1734310021548,1.5178,227.29,227.19,5.30351356]
[1734310021755,2.8454,227.31,227.22,2.2016]
[1734310021952,2.8454,227.31,227.19,5.30351356]
[1734310022550,2.2009,227.3,227.23,2.2014]
[1734310022851,2.8454,227.31,227.19,14.45437448]
[1734310023057,2.8454,227.31,227.19,5.30351356]
[1734310024753,2.201,227.28,227.23,2.2015]
[1734310024952,2.201,227.28,227.19,5.30351356]
[1734310025662,2.201,227.28,227.23,2.2015]
[1734310025859,2.8454,227.31,227.23,2.2015]
[1734310026056,2.2009,227.29,227.23,2.2015]
[1734310026257,2.8454,227.31,227.23,2.2015]
[1734310026453,2.8454,227.31,227.13,9.15086092]
[1734310026652,9.15086092,227.26,227.11,46.10357815]
[1734310026857,4.8679,227.25,227.11,46.10357815]
[1734310027058,7.0693,227.25,227.18,2.2019]
[1734310027254,4.8679,227.25,227.13,9.15086092]
[1734310027666,4.8679,227.25,227.16,9.15086092]
[1734310027960,3.46,227.25,227.16,9.15086092]
[1734310028462,3.46,227.25,227.23,2.2015]
[1734310029460,3.46,227.27,227.23,2.2015]
[1734310029760,3.46,227.27,227.24,2.2014]
[1734310030662,3.46,227.27,227.25,2.2013]
[1734310030963,3.46,227.27,227.19,14.51788369]
[1734310031161,3.46,227.27,227.19,5.36702277]
[1734310031464,3.46,227.27,227.2,9.15086092]
[1734310032562,3.46,227.27,227.19,5.36702277]
[1734310032855,3.46,227.27,227.19,14.51788369]
[1734310033855,4.2516,227.31,227.23,9.15086092]
[1734310034159,1.422,227.31,227.25,2.2012]
[1734310034356,1.422,227.31,227.23,9.15086092]
[1734310035161,3.46,227.32,227.2,9.15086092]
[1734310036163,2.2007,227.31,227.2,9.15086092]
[1734310036355,2.2007,227.31,227.19,5.36702277]
[1734310036562,9.15086092,227.31,227.19,5.36702277]
[1734310036762,9.15086092,227.28,227.12,9.15086092]
[1734310037464,9.15086092,227.31,227.15,9.15086092]
[1734310037860,2.2009,227.28,227.19,2.2017]
[1734310038062,2.2009,227.28,227.15,9.15086092]
[1734310038358,2.2008,227.3,227.19,2.2017]
[1734310038563,2.2008,227.3,227.15,9.15086092]
[1734310038871,2.2008,227.3,227.18,9.15086092]
[1734310039056,2.2008,227.3,227.24,2.2012]
[1734310039459,6.91077265,227.3,227.14,9.15086092]
[1734310039665,1.553,227.29,227.22,2.2015]
[1734310040171,9.15086092,227.28,227.11,46.10357815]
[1734310040365,9.15086092,227.25,227.1,9.15086092]
[1734310040561,4.9908,227.24,227.1,9.15086092]
[1734310041371,2.2017,227.2,227.15,2.2022]
[1734310041962,4.9908,227.24,227.13,9.15086092]
[1734310042564,7.1922,227.24,227.13,9.15086092]
[1734310042763,17.56629027,227.24,227.13,9.15086092]
[1734310042964,4.9908,227.24,227.13,9.15086092]
[1734310043169,3.46,227.23,227.13,9.15086092]
[1734310043671,3.46,227.23,227.08,4.9258]
[1734310043870,3.46,227.23,227.13,9.15086092]
[1734310044372,3.46,227.23,227.16,11.35296092]
[1734310044671,3.46,227.23,227.16,9.15086092]
[1734310044968,2.201,227.28,227.23,2.2014]
[1734310045170,3.46,227.25,227.23,2.2014]
[1734310046171,2.202,227.18,227.07,5.31108039]
[1734310046374,3.46,227.17,227.07,5.31108039]
[1734310046569,3.46,227.16,227.07,5.31108039]
[1734310047274,4.4606,227.19,227.07,5.31108039]
[1734310047474,2.2021,227.17,227.11,2.2026]
[1734310047775,9.15086092,227.14,226.99,9.15086092]
[1734310047969,9.15086092,227.14,226.87,3.46]
[1734310048173,9.15086092,227.11,226.95,9.15086092]
[1734310048475,9.15086092,227.08,226.92,9.15086092]
[1734310048668,2.2035,227.02,226.95,2.2041]
[1734310048874,3.46,227.01,226.89,9.15086092]
[1734310049071,5.6637,227.0,226.93,2.2044]
[1734310049369,3.46,227.0,226.92,5.33235647]
[1734310050468,3.46,227.0,226.95,2.2041]
[1734310051176,3.46,227.0,226.92,5.33235647]
[1734310051474,3.46,227.0,226.86,14.65546894]
[1734310051671,3.46,227.0,226.81,0.1488]
[1734310051672,3.7153,226.99,226.92,2.2044]
[1734310051878,1.5115,226.99,226.9,5.37469905]
[1734310052571,1.5115,226.99,226.96,2.2041]
[1734310052777,3.46,226.98,226.9,5.37469905]
[1734310053080,1.5115,226.99,226.9,5.37469905]
[1734310053371,1.4473,227.07,226.92,14.65546894]
[1734310053569,3.46,227.06,226.92,14.65546894]
[1734310053772,3.46,227.05,226.92,14.65546894]
[1734310053973,3.46,227.05,227.03,2.2034]
[1734310054177,3.46,227.05,226.93,1.5136]
[1734310054674,1.4473,227.07,226.93,1.5136]
[1734310054975,3.46,227.06,226.96,14.65546894]
[1734310055176,3.46,227.06,227.04,2.2033]
[1734310055370,1.4165,227.09,226.96,14.65546894]
[1734310055577,3.46,227.1,227.0,14.65546894]
[1734310055777,3.46,227.1,227.08,2.2029]
[1734310056579,3.46,227.14,227.12,2.2025]
[1734310056778,3.0095,227.17,227.0,14.65546894]
[1734310056980,3.46,227.16,227.0,14.65546894]
[1734310057681,2.2023,227.15,227.07,2.203]
[1734310057972,3.46,227.16,227.0,14.65546894]
[1734310058374,2.2025,227.13,227.0,14.65546894]
[1734310059276,2.2025,227.13,227.07,2.203]
[1734310059580,3.46,227.16,227.0,14.65546894]
[1734310059976,3.46,227.16,227.04,2.2032]
[1734310060180,3.46,227.16,227.01,1.4238]
[1734310061082,3.46,227.16,227.1,2.2027]
[1734310061276,3.46,227.16,227.03,5.34199549]
[1734310061687,2.2023,227.15,227.08,2.2029]
[1734310061880,3.0095,227.17,227.03,5.34199549]
[1734310062080,3.46,227.16,227.03,5.34199549]
[1734310062482,3.46,227.16,227.11,2.2026]
[1734310063686,3.46,227.16,227.12,2.2025]
[1734310063885,3.46,227.16,227.04,14.65546894]
[1734310064086,3.46,227.16,227.04,16.07456894]
[1734310064686,3.46,227.16,227.14,2.2023]
[1734310065387,3.46,227.16,227.12,2.2025]
[1734310065687,3.46,227.16,227.04,16.07456894]
[1734310065888,3.46,227.16,227.1,2.2027]
[1734310066188,3.46,227.16,227.04,1.4191]
[1734310067087,3.46,227.16,227.06,2.2031]
[1734310067285,1.4227,227.15,227.06,2.2031]
[1734310068483,2.2026,227.12,227.06,2.2031]
[1734310068789,1.4227,227.15,227.06,2.2031]
[1734310068991,2.2026,227.13,227.06,2.2031]
[1734310069189,16.07816894,227.15,226.96,14.65546894]
[1734310069388,1.4961,227.12,226.96,14.65546894]
[1734310069589,2.2029,227.09,226.96,14.65546894]
[1734310069794,3.46,227.08,226.96,14.65546894]
[1734310069989,3.46,227.08,226.95,1.472]
[1734310070485,3.46,227.08,227.04,2.2034]
[1734310071986,3.46,227.08,227.05,2.2033]
[1734310072194,3.46,227.08,227.0,14.40442559]
[1734310072889,3.46,227.11,227.03,9.1507796]
[1734310073282,1.4227,227.15,227.11,2.2025]
[1734310073283,3.46,227.13,227.11,2.2025]
[1734310073482,3.46,227.14,227.06,9.1507796]
[1734310073992,3.7499,227.21,227.12,9.1507796]
[1734310074287,3.46,227.25,227.15,9.1507796]
[1734310074487,3.46,227.26,227.21,2.2015]
[1734310074693,3.46,227.26,227.15,9.1507796]
[1734310074694,1.421,227.27,227.15,9.1507796]
[1734310074990,6.4691,227.29,227.18,9.1507796]
[1734310075195,3.0091,227.29,227.18,9.1507796]
[1734310075389,6.4691,227.29,227.26,2.201]
[1734310075587,4.9654,227.29,227.26,2.201]
[1734310076092,4.9654,227.29,227.25,2.2011]
[1734310076294,4.9654,227.29,227.18,9.1507796]
[1734310076885,4.9654,227.29,227.15,9.1507796]
[1734310077290,7.1662,227.29,227.19,2.2017]
[1734310077492,14.1161796,227.29,227.15,9.1507796]
[1734310077697,14.1161796,227.29,227.12,9.3004796]
[1734310077894,9.1507796,227.26,227.16,5.26339655]
[1734310078092,4.9654,227.29,227.16,5.26339655]
[1734310078398,15.53094704,227.29,227.16,5.26339655]
[1734310078589,4.9654,227.29,227.16,5.26339655]
[1734310078790,2.2011,227.26,227.18,2.2018]
[1734310079392,2.2012,227.25,227.18,2.2018]
[1734310079793,2.2012,227.25,227.16,5.26339655]
[1734310079794,14.62553535,227.26,227.05,16.09673535]
[1734310079994,14.62553535,227.26,227.0,14.62553535]
[1734310079995,2.2023,227.14,227.0,14.62553535]
[1734310080296,3.46,227.13,227.0,14.62553535]
[1734310080497,3.46,227.13,227.05,5.36026522]
[1734310081496,3.46,227.13,227.08,2.2027]
[1734310082193,3.46,227.13,226.99,14.62553535]
[1734310082398,3.46,227.13,226.93,3.0336]
[1734310082399,3.46,227.13,226.95,14.62553535]
[1734310082594,1.5183,227.12,226.95,14.62553535]
[1734310083300,1.5183,227.12,227.0,5.38096034]
[1734310083491,2.2027,227.1,227.02,2.2034]
[1734310083901,1.5183,227.12,227.0,5.38096034]
[1734310084295,2.2026,227.1,227.0,5.38096034]
[1734310084496,3.46,227.11,227.0,5.38096034]
[1734310084704,5.6626,227.11,227.03,2.2033]
[1734310084901,3.46,227.11,227.0,5.38096034]
[1734310085304,3.46,227.11,227.05,2.2031]
[1734310085598,1.4742,227.14,227.0,5.38096034]
[1734310085904,3.46,227.13,227.03,14.62553535]
[1734310086794,3.46,227.13,227.0,5.38096034]
[1734310087395,2.2024,227.12,227.05,2.203]
[1734310087599,2.2024,227.12,227.0,5.38096034]
[1734310087995,3.46,227.13,227.0,5.38096034]
[1734310088201,3.46,227.13,227.03,14.62553535]
[1734310089599,3.46,227.13,227.1,2.2026]
[1734310090005,3.46,227.13,227.03,14.62553535]
[1734310090203,3.46,227.13,227.0,5.38096034]
[1734310090698,5.6623,227.13,227.0,5.38096034]
[1734310090898,3.46,227.13,227.0,5.38096034]
[1734310091305,5.6623,227.13,227.07,2.2029]
[1734310091501,3.46,227.13,227.03,14.62553535]
[1734310092206,3.46,227.13,227.0,5.38096034]
[1734310092708,3.46,227.13,227.03,14.62553535]
[1734310092902,3.46,227.16,227.07,14.62553535]
[1734310093211,3.46,227.18,227.07,14.62553535]
[1734310093904,3.46,227.18,227.17,2.2019]
[1734310094502,3.46,227.18,227.07,14.62553535]
[1734310094907,3.46,227.18,227.1,2.2026]
[1734310095109,3.46,227.18,227.07,14.62553535]
[1734310096111,3.46,227.18,227.04,3.0913]
[1734310096302,3.46,227.18,227.04,2.945]
[1734310096504,3.46,227.18,227.07,2.2028]
[1734310096706,1.4544,227.17,227.04,1.5108]
[1734310097309,1.4544,227.17,227.0,5.38096034]
[1734310097512,1.5322,227.16,227.0,5.38096034]
[1734310097703,2.2023,227.13,227.04,2.2031]
[1734310097908,2.2023,227.13,227.0,5.38096034]
[1734310098304,1.5322,227.16,227.0,5.38096034]
[1734310098502,2.2026,227.11,227.0,5.38096034]
[1734310098706,3.46,227.1,227.0,5.38096034]
[1734310100108,3.46,227.1,227.09,2.2027]
[1734310100310,3.7342,227.16,227.0,5.38096034]
[1734310100508,3.46,227.15,227.0,5.38096034]
[1734310101110,2.2025,227.11,227.0,5.38096034]
[1734310101306,3.46,227.15,227.0,5.38096034]
[1734310101707,14.084251,227.15,227.0,5.38096034]
[1734310101911,14.084251,227.15,227.03,2.2033]
[1734310102714,14.084251,227.15,227.04,2.2032]
[1734310102916,3.46,227.14,227.04,2.2032]
[1734310103315,2.2025,227.11,227.05,2.2031]
[1734310103509,3.46,227.14,227.0,5.38096034]
[1734310103915,2.2024,227.13,227.07,2.2029]
[1734310104112,3.46,227.14,227.0,5.38096034]
[1734310104515,2.2025,227.12,227.06,2.2029]
[1734310104719,3.46,227.14,227.0,5.38096034]
[1734310105015,3.46,227.15,227.12,2.2024]
[1734310105215,3.46,227.15,227.01,1.4409]
[1734310105216,3.46,227.15,227.03,14.62553535]
[1734310105718,3.46,227.15,227.13,2.2023]
[1734310106015,3.46,227.15,227.03,14.62553535]
[1734310106211,3.46,227.15,227.14,2.2022]
[1734310106413,17.58793535,227.24,227.07,14.62553535]
[1734310106614,3.46,227.23,227.07,14.62553535]
[1734310108410,3.46,227.23,227.04,16.05613535]
[1734310108614,14.07782798,227.23,227.04,16.05613535]
[1734310109619,6.90713076,227.22,227.04,1.4306]
[1734310109811,17.52495874,227.22,227.04,1.4306]
[1734310110016,14.62553535,227.2,227.01,1.4409]
[1734310110215,10.61782798,227.19,227.01,1.4409]
[1734310110612,2.2021,227.16,227.09,2.2027]
[1734310110814,3.46,227.15,227.09,2.2027]
[1734310111013,3.46,227.15,227.01,1.4409]
[1734310111811,3.46,227.15,227.1,2.2026]
[1734310112015,3.46,227.15,227.01,1.4409]
[1734310112216,3.46,227.15,227.12,2.2023]
[1734310112515,3.46,227.15,227.01,1.4409]
[1734310114815,3.46,227.15,227.0,5.38096034]
[1734310115119,2.9091,227.14,227.0,5.38096034]
[1734310115418,14.08470613,227.15,227.0,5.38096034]
[1734310115617,3.46,227.15,227.0,5.38096034]
[1734310117718,3.46,227.15,227.04,2.2032]
[1734310117719,2.2026,227.1,227.04,2.2032]
[1734310118214,2.2028,227.09,227.02,2.2033]
[1734310118414,3.46,227.08,227.0,5.38096034]
[1734310118618,3.46,227.09,227.0,5.38096034]
[1734310118823,3.46,227.09,227.02,2.2033]
[1734310119023,3.46,227.09,227.0,5.38096034]
[1734310120422,3.46,227.09,227.08,2.2028]
[1734310120622,3.46,227.14,227.0,5.38096034]
[1734310121716,10.62525803,227.16,227.1,2.2026]
[1734310121920,3.46,227.15,227.1,2.2026]
[1734310122522,3.46,227.15,227.08,2.2027]
[1734310123524,2.2022,227.14,227.09,2.2027]
[1734310123823,40.66642478,227.22,227.02,14.62553535]
[1734310124125,3.44,227.21,227.13,2.2023]
[1734310124327,44.10642478,227.22,227.05,3.44]
[1734310124623,2.2016,227.21,227.06,16.14553535]
[1734310124817,2.2016,227.21,227.14,2.2021]
[1734310125225,2.2016,227.21,227.06,16.14553535]
[1734310125425,2.2016,227.21,227.15,2.2021]
[1734310125825,2.2016,227.21,227.06,16.14553535]
[1734310126120,2.2016,227.21,227.15,2.2021]
[1734310126321,2.9091,227.22,227.06,16.14553535]
[1734310126525,3.44,227.21,227.16,2.202]
[1734310127221,3.44,227.21,227.06,16.14553535]
[1734310127723,2.2018,227.19,227.1,2.2026]
[1734310128029,18.06553535,227.21,227.06,1.52]
[1734310128225,1.4224,227.18,227.0,5.38096034]
[1734310128423,1.4224,227.18,227.07,2.2029]
[1734310129119,2.2024,227.13,227.07,2.2029]
[1734310130326,2.2024,227.13,227.08,2.2028]
[1734310130531,3.44,227.14,227.0,5.38096034]
[1734310131427,3.44,227.14,227.02,14.62553535]
[1734310131922,3.44,227.14,227.0,5.38096034]
[1734310132322,2.2024,227.12,227.0,5.38096034]
[1734310133426,2.2024,227.12,227.07,2.2029]
[1734310134125,3.44,227.14,227.0,5.38096034]
[1734310134524,2.2027,227.1,227.04,2.2031]
[1734310134721,2.2027,227.1,227.0,5.38096034]
[1734310135429,2.2025,227.11,227.03,2.2032]
[1734310135724,52.36557533,227.21,227.0,5.38096034]
[1734310135923,1.5478,227.21,227.02,14.62553535]
[1734310136128,3.44,227.2,227.06,14.62553535]
[1734310136528,3.44,227.2,227.07,1.4824]
[1734310138429,3.44,227.2,227.1,2.2025]
[1734310138626,3.44,227.2,227.07,1.4824]
[1734310140327,3.44,227.2,227.12,5.16008402]
[1734310140826,3.44,227.2,227.16,2.202]
[1734310141825,3.44,227.2,227.17,2.2019]
[1734310142031,3.44,227.2,227.12,5.16008402]
[1734310142231,1.4688,227.22,227.12,5.16008402]
[1734310142424,1.4688,227.22,227.19,2.2017]
[1734310142623,1.4688,227.22,227.12,5.16008402]
[1734310143030,37.74003998,227.27,227.12,5.16008402]
[1734310143031,39.94113998,227.27,227.12,5.16008402]
[1734310143331,236.83217238,227.31,227.18,14.62553535]
[1734310143332,238.24187238,227.31,227.18,14.62553535]
[1734310143531,3.44,227.37,227.19,4.9598]
[1734310143724,20.46407077,227.37,227.19,4.9598]
[1734310143925,2.2002,227.35,227.19,4.9598]
[1734310144528,3.44,227.37,227.3,2.2007]
[1734310145228,3.44,227.37,227.31,2.2006]
[1734310145533,1.4735,227.38,227.22,14.62553535]
[1734310145729,1.4735,227.38,227.26,2.201]
[1734310145924,1.4735,227.38,227.22,14.62553535]
[1734310146428,1.4735,227.38,227.32,2.2004]
[1734310146627,1.4735,227.38,227.22,14.62553535]
[1734310147129,1.4735,227.38,227.23,3.44]
[1734310147327,1.4735,227.38,227.29,5.18762772]
[1734310148126,1.4547,227.39,227.34,2.2002]
[1734310148326,2.1997,227.41,227.29,5.18762772]
[1734310148327,3.44,227.41,227.29,5.18762772]
[1734310148523,1.4909,227.45,227.29,5.18762772]
[1734310148728,1.4909,227.45,227.3,3.44]
[1734310149233,2.1996,227.41,227.35,2.2001]
[1734310149430,3.44,227.4,227.29,5.18762772]
[1734310149834,3.44,227.4,227.31,2.2005]
[1734310150331,3.44,227.4,227.23,1.4062]
[1734310150536,3.44,227.4,227.22,3.44]
[1734310151137,2.2002,227.35,227.22,3.44]
[1734310151437,3.44,227.4,227.2,3.44]
[1734310151632,2.2005,227.32,227.26,2.201]
[1734310151838,2.2005,227.32,227.2,3.44]
[1734310152335,14.62553535,227.38,227.26,2.2011]
[1734310152641,14.62553535,227.38,227.25,5.34087332]
[1734310152833,2.9052,227.37,227.19,43.48000942]
[1734310153039,2.2006,227.31,227.19,43.48000942]
[1734310153237,3.44,227.32,227.19,43.48000942]
[1734310153437,3.44,227.32,227.19,40.53010942]
[1734310153738,1.4681,227.31,227.19,40.53010942]
[1734310154135,2.2008,227.29,227.22,2.2014]
[1734310154541,1.4681,227.31,227.26,2.2011]
[1734310154735,1.4681,227.31,227.21,5.3790474]
[1734310155536,3.44,227.32,227.21,5.3790474]
[1734310157041,3.44,227.32,227.24,2.2012]
[1734310157244,3.44,227.32,227.21,5.3790474]
[1734310157739,6.3452,227.37,227.29,2.2008]
[1734310158245,2.2001,227.36,227.3,2.2006]
[1734310158542,2.9052,227.37,227.21,8.8190474]
[1734310158746,2.9052,227.37,227.24,14.62553535]
[1734310159244,4.9129,227.38,227.24,14.62553535]
[1734310159946,17.62153535,227.46,227.28,14.62553535]
[1734310160246,4.8469,227.45,227.28,18.06553535]
[1734310160445,3.44,227.44,227.39,2.1998]
[1734310160642,4.8469,227.45,227.29,1.4986]
[1734310161038,2.1994,227.44,227.37,2.2]
[1734310161748,2.1994,227.44,227.38,2.1999]
[1734310162644,4.8469,227.45,227.24,14.62553535]
[1734310162943,4.8469,227.45,227.25,3.44]
[1734310163142,2.1997,227.4,227.34,2.2003]
[1734310163338,4.8469,227.45,227.24,18.94566208]
[1734310163538,4.8469,227.45,227.25,0.880088]
[1734310164639,4.8469,227.45,227.35,2.2002]
[1734310165246,2.1996,227.41,227.35,2.2002]
[1734310165440,4.8469,227.45,227.35,2.2002]
[1734310165641,4.8469,227.45,227.34,2.2003]
[1734310165844,2.1998,227.4,227.34,2.2003]
[1734310166040,2.1998,227.4,227.25,0.880088]
[1734310166243,2.1998,227.4,227.34,2.2002]
[1734310166445,2.1998,227.39,227.25,0.880088]
[1734310167552,2.1998,227.39,227.33,2.2003]
[1734310168251,2.1998,227.39,227.25,0.880088]
[1734310168451,2.1997,227.41,227.25,0.880088]
[1734310168648,236.83217238,227.43,227.34,2.2002]
[1734310169550,2.1997,227.4,227.34,2.2002]
[1734310170545,2.1997,227.4,227.35,2.2002]
[1734310170942,246.72204751,227.42,227.27,9.88987513]
[1734310171551,2.1998,227.39,227.33,2.2003]
[1734310171747,3.44,227.38,227.33,2.2003]
[1734310172051,3.44,227.38,227.33,0.50556306]
[1734310172253,3.44,227.38,227.27,9.88987513]
[1734310173652,3.44,227.38,227.36,2.2001]
[1734310173951,236.83217238,227.4,227.36,2.2001]
[1734310174753,2.1996,227.41,227.36,2.2001]
[1734310175052,3.44,227.42,227.38,2.1999]
[1734310175444,236.83217238,227.44,227.3,9.88987513]
[1734310175849,1.4069,227.45,227.3,13.32987513]
[1734310176551,2.1993,227.44,227.39,2.1998]
[1734310176754,1.4069,227.45,227.33,9.88987513]
[1734310177146,1.4069,227.45,227.4,2.1997]
[1734310178151,1.4069,227.45,227.33,9.88987513]
[1734310178346,2.1993,227.44,227.33,9.88987513]
[1734310179155,3.6062,227.45,227.39,2.1998]
[1734310179547,1.4069,227.45,227.33,9.88987513]
[1734310179749,1.4069,227.45,227.34,0.87973959]
[1734310180651,1.4069,227.45,227.39,2.1998]
[1734310181150,3.6062,227.45,227.4,2.1997]
[1734310181347,3.6062,227.45,227.34,0.87973959]
[1734310181552,236.83217238,227.43,227.34,0.87973959]
[1734310182452,236.83217238,227.43,227.39,2.1998]
[1734310183058,236.83217238,227.43,227.4,2.1997]
[1734310183655,233.07607238,227.43,227.42,2.1995]
[1734310183956,236.83217238,227.49,227.39,9.88987513]
[1734310184253,5.13857898,227.53,227.4,0.87950747]
[1734310184556,18.48566815,227.53,227.4,0.87950747]
[1734310184762,6.88917281,227.52,227.4,0.87950747]
[1734310185356,1.5238,227.53,227.4,0.87950747]
[1734310185858,2.1987,227.51,227.4,0.87950747]
[1734310186156,1.5238,227.53,227.4,0.87950747]
[1734310187455,1.5238,227.53,227.44,2.1993]
[1734310187456,2.1987,227.51,227.44,2.1993]
[1734310187659,2.1987,227.51,227.45,0.87931413]
[1734310188758,2.1987,227.51,227.45,3.07851413]
[1734310190563,1.5238,227.53,227.45,0.87931413]
[1734310190860,2.9224,227.5,227.45,0.87931413]
[1734310191658,2.199,227.48,227.45,0.87931413]
[1734310191959,3.44,227.47,227.37,5.25628987]
[1734310192463,3.44,227.47,227.38,2.1998]
[1734310194265,2.1994,227.44,227.38,2.1998]
[1734310194866,5.6391,227.46,227.41,2.1996]
[1734310195067,5.6391,227.46,227.36,15.04918599]
[1734310195265,5.6391,227.46,227.37,0.87962352]
[1734310195661,2.1992,227.45,227.4,2.1997]
[1734310196062,247.6058949,227.46,227.37,0.87962352]
[1734310196265,6.89846252,227.45,227.4,2.1996]
[1734310196671,6.89846252,227.45,227.37,0.87962352]
[1734310197069,5.6392,227.46,227.37,0.87962352]
[1734310197672,5.6392,227.46,227.39,2.1997]
[1734310197970,5.6392,227.46,227.37,0.87962352]
[1734310198368,5.6392,227.46,227.4,2.1996]
[1734310199476,3.44,227.46,227.4,2.1996]
[1734310199668,3.44,227.46,227.37,0.87962352]
[1734310199669,2.1992,227.45,227.37,0.87962352]
[1734310199864,2.1992,227.45,227.39,2.1998]
[1734310200375,2.1995,227.42,227.37,3.07952352]
[1734310201170,1.4704,227.41,227.37,3.07952352]
[1734310201765,1.489,227.4,227.37,3.07952352]
[1734310202471,3.44,227.39,227.37,0.87962352]
[1734310202676,3.44,227.39,227.26,0.8772]
[1734310202677,3.44,227.39,227.27,9.88987513]
[1734310202977,3.44,227.39,227.27,5.30429908]